fUST/lending_fUST_20250227
["ID","MTS","AMOUNT","RATE_DAILY","PERIOD"]
[354754478,1740666656040,-500.0,0.00050136,120]
[354754479,1740666656050,-500.0,0.00050136,120]
[354754480,1740666656060,-500.0,0.00050136,120]
[354754481,1740666656070,-500.0,0.00050136,120]
[354754482,1740666656080,-500.0,0.00050136,120]
[354754483,1740666656089,-500.0,0.00050136,120]
[354754484,1740666656099,-285.75,0.00050136,120]
[354754485,1740666656108,-500.0,0.00050136,120]
[354754486,1740666656118,-644.05,0.00050136,120]
[354754487,1740666656128,-500.0,0.00050136,120]
[354754488,1740666656137,-500.0,0.00050136,120]
[354754489,1740666656147,-500.0,0.00050136,120]
[354754490,1740666656157,-500.0,0.00050136,120]
[354754491,1740666656166,-252.24,0.00050136,120]
[354754492,1740666656176,-500.0,0.00050136,120]
[354754493,1740666656186,-500.0,0.00050136,120]
[354754494,1740666656197,-500.0,0.00050136,120]
[354754495,1740666656207,-500.0,0.00050136,120]
[354754496,1740666656216,-541.42,0.00050136,120]
[354754497,1740666656231,-500.0,0.00050136,120]
[354754498,1740666656241,-500.0,0.00050136,120]
[354754499,1740666656250,-500.0,0.00050136,120]
[354754500,1740666656260,-500.0,0.00050136,120]
[354754501,1740666656270,-500.0,0.00050136,120]
[354754502,1740666656279,-500.0,0.00050136,120]
[354754503,1740666656289,-500.0,0.00050136,120]
[354754504,1740666656299,-500.0,0.00050136,120]
[354754505,1740666656308,-500.0,0.00050136,120]
[354754506,1740666656318,-500.0,0.00050136,120]
[354754507,1740666656328,-500.0,0.00050136,120]
[354754508,1740666656337,-500.0,0.00050136,120]
[354754509,1740666656347,-500.0,0.00050136,120]
[354754510,1740666656357,-500.0,0.00050136,120]
[354754511,1740666656367,-1164.08,0.00050136,120]
[354754512,1740666656376,-500.0,0.00050136,120]
[354754513,1740666656386,-500.0,0.00050136,120]
[354754514,1740666656395,-693.23,0.00050136,120]
[354754515,1740666656405,-500.0,0.00050136,120]
[354754516,1740666656414,-500.0,0.00050136,120]
[354754517,1740666656423,-500.0,0.00050136,120]
[354754518,1740666656433,-500.0,0.00050136,30]
[354754519,1740666656443,-1030.86,0.00050136,120]
[354754520,1740666656452,-500.0,0.00050136,120]
[354754521,1740666656462,-500.0,0.00050136,120]
[354754522,1740666656475,-500.0,0.00050136,120]
[354754523,1740666656485,-500.0,0.00050136,120]
[354754524,1740666656495,-500.0,0.00050136,120]
[354754525,1740666656504,-726.73,0.00050136,120]
[354754526,1740666656514,-500.0,0.00050136,120]
[354754527,1740666656524,-25688.59,0.00050136,7]
[354754528,1740666656534,-323.35,0.00050136,120]
[354754529,1740666656543,-1792.0,0.00050136,120]
[354754530,1740666656639,-500.0,0.00050136,120]
[354754531,1740666656649,-500.0,0.00050136,120]
[354754532,1740666656659,-500.0,0.00050136,120]
[354754533,1740666656670,-1063.21,0.00050136,120]
[354754534,1740666656679,-500.0,0.00050136,120]
[354754535,1740666656689,-500.0,0.00050136,120]
[354754536,1740666656698,-519.69,0.00050136,120]
[354754537,1740666656708,-500.0,0.00050136,120]
[354754538,1740666656719,-500.0,0.00050136,120]
[354754539,1740666656732,-500.0,0.00050136,120]
[354754540,1740666656741,-213.07,0.00050136,120]
[354754541,1740666656750,-500.0,0.00050136,120]
[354754542,1740666656759,-500.0,0.00050136,120]
[354754543,1740666656769,-716.89,0.00050136,120]
[354754544,1740666656778,-160.27,0.00050136,120]
[354754545,1740666656788,-1126.63,0.00050136,120]
[354754546,1740666656797,-388.9,0.00050136,120]
[354754547,1740666656806,-924.76,0.00050136,120]
[354754548,1740666656815,-500.0,0.00050136,120]
[354754549,1740666656825,-500.0,0.00050136,120]
[354754550,1740666656835,-500.0,0.00050136,120]
[354754551,1740666656844,-500.0,0.00050136,120]
[354754552,1740666656853,-500.0,0.00050136,120]
[354754553,1740666656863,-500.0,0.00050136,120]
[354754554,1740666656873,-2000.0,0.00050136,120]
[354754555,1740666656883,-500.0,0.00050136,120]
[354754556,1740666656893,-1000.0,0.00050136,2]
[354754557,1740666656902,-500.0,0.00050136,120]
[354754558,1740666656911,-500.0,0.00050136,120]
[354754559,1740666656921,-470.53,0.00050136,120]
[354754560,1740666656930,-504.15,0.00050136,120]
[354754561,1740666656940,-622.67,0.00050136,120]
[354754562,1740666656949,-500.0,0.00050136,120]
[354754563,1740666656958,-500.0,0.00050136,120]
[354754564,1740666656968,-667.96,0.00050136,120]
[354754565,1740666656980,-500.0,0.00050136,120]
[354754566,1740666656990,-500.0,0.00050136,120]
[354754567,1740666656999,-4828.8,0.00050136,120]
[354754568,1740666657008,-435.96,0.00050136,120]
[354754569,1740666657017,-500.0,0.00050136,120]
[354754570,1740666657027,-500.0,0.00050136,120]
[354754571,1740666657036,-377.15,0.00050136,120]
[354754572,1740666657045,-1036.14,0.00050136,120]
[354754573,1740666657054,-500.0,0.00050136,120]
[354754574,1740666657064,-557.26775005,0.00050136,120]
[354754575,1740666657073,-471.24,0.00050136,120]
[354754576,1740666657082,-500.0,0.00050136,120]
[354754577,1740666657091,-500.0,0.00050136,120]
[354754578,1740666657100,-570.92,0.00050136,120]
[354754579,1740666657110,-500.0,0.00050136,120]
[354754580,1740666657119,-1516.36,0.00050136,120]
[354754581,1740666657128,-500.0,0.00050136,120]
[354754582,1740666657137,-500.0,0.00050136,120]
[354754583,1740666657147,-4517.43,0.00050136,6]
[354754584,1740666657156,-380.09,0.00050136,120]
[354754585,1740666657166,-500.0,0.00050136,120]
[354754586,1740666657175,-659.38,0.00050136,120]
[354754587,1740666657184,-500.0,0.00050136,120]
[354754588,1740666657193,-500.0,0.00050136,120]
[354754589,1740666657203,-500.0,0.00050136,120]
[354754590,1740666657213,-500.0,0.00050136,120]
[354754591,1740666657225,-500.0,0.00050136,120]
[354754592,1740666657235,-500.0,0.00050136,120]
[354754593,1740666657246,-525.08112949,0.00050136,120]
[354754594,1740666657255,-500.0,0.00050136,120]
[354754595,1740666657264,-500.0,0.00050136,120]
[354754596,1740666657274,-2730.13,0.00050136,120]
[354754597,1740666657283,-500.0,0.00050136,2]
[354754598,1740666657293,-500.0,0.00050136,120]
[354754599,1740666657303,-750.01,0.00050136,120]
[354754600,1740666657314,-2122.3,0.00050136,120]
[354754601,1740666657323,-3188.09,0.00050136,120]
[354754602,1740666657333,-500.0,0.00050136,120]
[354754603,1740666657343,-1337.0,0.00050136,120]
[354754604,1740666657352,-380.18,0.00050136,120]
[354754605,1740666657362,-500.0,0.00050136,120]
[354754606,1740666657372,-503.0,0.00050136,2]
[354754607,1740666657381,-500.0,0.00050136,120]
[354754608,1740666657392,-500.0,0.00050136,120]
[354754609,1740666657402,-282.51,0.000502,30]
[354754610,1740666657412,-500.0,0.0005041,120]
[354754611,1740666657423,-500.0,0.0005041,120]
[354754612,1740666657433,-500.0,0.0005041,120]
[354754613,1740666657443,-500.0,0.0005041,120]
[354754614,1740666657453,-500.0,0.0005041,120]
[354754615,1740666657463,-500.0,0.0005041,120]
[354754616,1740666657476,-710.53,0.0005041,120]
[354754617,1740666657485,-500.0,0.0005041,120]
[354754618,1740666657494,-500.0,0.0005041,120]
[354754619,1740666657504,-500.0,0.0005041,120]
[354754620,1740666657516,-500.0,0.0005041,120]
[354754621,1740666657530,-500.0,0.0005041,120]
[354754622,1740666657545,-500.0,0.0005041,120]
[354754623,1740666657561,-500.0,0.0005041,120]
[354754624,1740666657573,-500.0,0.0005041,120]
[354754625,1740666657589,-500.0,0.0005041,120]
[354754626,1740666657604,-317.24,0.0005041,120]
[354754627,1740666657619,-500.0,0.0005041,120]
[354754628,1740666657636,-500.0,0.0005041,120]
[354754629,1740666657651,-500.0,0.0005041,120]
[354754630,1740666657667,-500.0,0.0005041,120]
[354754631,1740666657683,-500.0,0.0005041,120]
[354754632,1740666657697,-500.0,0.0005041,120]
[354754633,1740666657710,-500.0,0.0005041,120]
[354754634,1740666657728,-253.78,0.0005041,120]
[354754635,1740666657742,-261.76,0.0005041,120]
[354754636,1740666657755,-500.0,0.0005041,120]
[354754637,1740666657768,-500.0,0.0005041,120]
[354754638,1740666657781,-502.89,0.0005041,120]
[354754639,1740666657796,-500.0,0.0005041,120]
[354754640,1740666657811,-500.0,0.0005041,120]
[354754641,1740666657825,-247.19,0.0005041,120]
[354754642,1740666657840,-309.71,0.0005041,120]
[354754643,1740666657856,-500.0,0.0005041,120]
[354754644,1740666657868,-500.0,0.0005041,120]
[354754645,1740666657879,-500.0,0.0005041,120]
[354754646,1740666657890,-644.05,0.0005041,120]
[354754647,1740666657903,-500.0,0.0005041,120]
[354754648,1740666657919,-500.0,0.0005041,120]
[354754649,1740666657937,-636.69306001,0.0005041,120]
[354754650,1740666657949,-526.05,0.0005041,120]
[354754651,1740666657960,-500.0,0.0005041,120]
[354754652,1740666657974,-500.0,0.0005041,120]
[354754653,1740666657987,-500.0,0.0005041,120]
[354754654,1740666657998,-500.0,0.0005041,120]
[354754655,1740666658011,-534.2,0.0005041,120]
[354754656,1740666658023,-500.0,0.0005041,120]
[354754657,1740666658036,-500.0,0.0005041,120]
[354754658,1740666658049,-500.0,0.0005041,120]
[354754659,1740666658062,-179.76,0.0005041,120]
[354754660,1740666658074,-500.0,0.0005041,120]
[354754661,1740666658087,-500.0,0.0005041,120]
[354754662,1740666658099,-500.0,0.0005041,120]
[354754663,1740666658111,-480.55,0.0005041,120]
[354754664,1740666658122,-341.68,0.0005041,120]
[354754665,1740666658134,-500.0,0.0005041,120]
[354754666,1740666658146,-1164.08,0.0005041,120]
[354754667,1740666658158,-500.0,0.0005041,120]
[354754668,1740666658170,-500.0,0.0005041,120]
[354754669,1740666658182,-693.23,0.0005041,120]
[354754670,1740666658195,-500.0,0.0005041,120]
[354754671,1740666658206,-500.0,0.0005041,120]
[354754672,1740666658218,-500.0,0.0005041,30]
[354754673,1740666658232,-1030.86,0.0005041,120]
[354754674,1740666658245,-500.0,0.0005041,120]
[354754675,1740666658256,-500.0,0.0005041,120]
[354754676,1740666658268,-500.0,0.0005041,120]
[354754677,1740666658280,-500.0,0.0005041,120]
[354754678,1740666658292,-473.51,0.0005041,120]
[354754679,1740666658304,-726.73,0.0005041,120]
[354754680,1740666658318,-500.0,0.0005041,120]
[354754681,1740666658330,-25688.59,0.0005041,7]
[354754682,1740666658342,-1792.0,0.0005041,120]
[354754683,1740666658354,-500.0,0.0005041,120]
[354754684,1740666658366,-254.05,0.0005041,120]
[354754685,1740666658380,-500.0,0.0005041,120]
[354754686,1740666658393,-1063.21,0.0005041,120]
[354754687,1740666658411,-300.13,0.0005041,120]
[354754688,1740666658422,-500.0,0.0005041,120]
[354754689,1740666658434,-500.0,0.0005041,120]
[354754690,1740666658446,-500.0,0.0005041,120]
[354754691,1740666658458,-594.41,0.0005041,120]
[354754692,1740666658470,-500.0,0.0005041,120]
[354754693,1740666658483,-500.0,0.0005041,120]
[354754694,1740666658495,-716.89,0.0005041,120]
[354754695,1740666658507,-1126.63,0.0005041,120]
[354754696,1740666658520,-924.76,0.0005041,120]
[354754697,1740666658532,-372.91,0.0005041,120]
[354754698,1740666658545,-500.0,0.0005041,120]
[354754699,1740666658557,-500.0,0.0005041,120]
[354754700,1740666658570,-159.38,0.0005041,120]
[354754701,1740666658582,-500.0,0.0005041,120]
[354754702,1740666658595,-1139.76,0.0005041,120]
[354754703,1740666658606,-500.0,0.0005041,120]
[354754704,1740666658616,-1000.0,0.0005041,2]
[354754705,1740666658627,-500.0,0.0005041,120]
[354754706,1740666658637,-500.0,0.0005041,120]
[354754707,1740666658650,-622.67,0.0005041,120]
[354754708,1740666658659,-500.0,0.0005041,120]
[354754709,1740666658670,-500.0,0.0005041,120]
[354754710,1740666658680,-667.96,0.0005041,120]
[354754711,1740666658848,-500.0,0.0005041,120]
[354754712,1740666658859,-500.0,0.0005041,120]
[354754713,1740666658870,-4828.8,0.0005041,120]
[354754714,1740666658880,-500.0,0.0005041,120]
[354754715,1740666658890,-500.0,0.0005041,120]
[354754716,1740666658900,-1036.14,0.0005041,120]
[354754717,1740666658909,-500.0,0.0005041,120]
[354754718,1740666658918,-500.0,0.0005041,120]
[354754719,1740666658928,-500.0,0.0005041,120]
[354754720,1740666658938,-570.92,0.0005041,120]
[354754721,1740666658948,-500.0,0.0005041,120]
[354754722,1740666658958,-1516.36,0.0005041,120]
[354754723,1740666658967,-500.0,0.0005041,120]
[354754724,1740666658983,-500.0,0.0005041,120]
[354754725,1740666658992,-4517.43,0.0005041,6]
[354754726,1740666659002,-500.0,0.0005041,120]
[354754727,1740666659011,-659.38,0.0005041,120]
[354754728,1740666659021,-500.0,0.0005041,120]
[354754729,1740666659030,-500.0,0.0005041,120]
[354754730,1740666659040,-500.0,0.0005041,120]
[354754731,1740666659050,-500.0,0.0005041,120]
[354754732,1740666659060,-500.0,0.0005041,120]
[354754733,1740666659070,-500.0,0.0005041,120]
[354754734,1740666659079,-500.0,0.0005041,120]
[354754735,1740666659089,-2730.13,0.0005041,120]
[354754736,1740666659099,-500.0,0.0005041,2]
[354754737,1740666659108,-500.0,0.0005041,120]
[354754738,1740666659118,-750.01,0.0005041,120]
[354754739,1740666659127,-2122.3,0.0005041,120]
[354754740,1740666659137,-3188.09,0.0005041,120]
[354754741,1740666659147,-500.0,0.0005041,120]
[354754742,1740666659164,-1337.0,0.0005041,120]
[354754743,1740666659174,-215.69,0.0005041,120]
[354754744,1740666659184,-500.0,0.0005041,120]
[354754745,1740666659194,-500.0,0.0005041,120]
[354754746,1740666659205,-500.0,0.00050453,5]
[354754747,1740666659214,-500.0,0.00050684,120]
[354754748,1740666659227,-500.0,0.00050684,120]
[354754749,1740666659238,-500.0,0.00050684,120]
[354754750,1740666659248,-175.11,0.00050684,120]
[354754751,1740666659258,-500.0,0.00050684,120]
[354754752,1740666659267,-500.0,0.00050684,120]
[354754753,1740666659276,-710.53,0.00050684,120]
[354754754,1740666659285,-500.0,0.00050684,120]
[354754755,1740666659294,-500.0,0.00050684,120]
[354754756,1740666659304,-500.0,0.00050684,120]
[354754757,1740666659313,-500.0,0.00050684,120]
[354754758,1740666659323,-303.68,0.00050684,120]
[354754759,1740666659332,-500.0,0.00050684,120]
[354754760,1740666659341,-500.0,0.00050684,120]
[354754761,1740666659351,-411.15,0.00050684,120]
[354754762,1740666659360,-500.0,0.00050684,120]
[354754763,1740666659370,-500.0,0.00050684,120]
[354754764,1740666659380,-500.0,0.00050684,120]
[354754765,1740666659389,-500.0,0.00050684,120]
[354754766,1740666659403,-500.0,0.00050684,120]
[354754767,1740666659413,-393.94,0.00050684,120]
[354754768,1740666659423,-500.0,0.00050684,120]
[354754769,1740666659433,-500.0,0.00050684,120]
[354754770,1740666659443,-500.0,0.00050684,120]
[354754771,1740666659453,-564.48,0.00050684,120]
[354754772,1740666659464,-500.0,0.00050684,120]
[354754773,1740666659475,-500.0,0.00050684,120]
[354754774,1740666659485,-500.0,0.00050684,120]
[354754775,1740666659495,-526.29,0.00050684,120]
[354754776,1740666659504,-500.0,0.00050684,120]
[354754777,1740666659513,-644.05,0.00050684,120]
[354754778,1740666659523,-500.0,0.00050684,120]
[354754779,1740666659532,-500.0,0.00050684,120]
[354754780,1740666659542,-617.44,0.00050684,120]
[354754781,1740666659552,-598.68,0.00050684,120]
[354754782,1740666659562,-500.0,0.00050684,120]
[354754783,1740666659572,-500.0,0.00050684,120]
[354754784,1740666659582,-500.0,0.00050684,120]
[354754785,1740666659592,-566.59,0.00050684,120]
[354754786,1740666659602,-500.0,0.00050684,120]
[354754787,1740666659612,-500.0,0.00050684,120]
[354754788,1740666659621,-500.0,0.00050684,120]
[354754789,1740666659634,-500.0,0.00050684,120]
[354754790,1740666659644,-500.0,0.00050684,120]
[354754791,1740666659654,-1164.08,0.00050684,120]
[354754792,1740666659663,-500.0,0.00050684,120]
[354754793,1740666659675,-693.23,0.00050684,120]
[354754794,1740666659684,-540.95,0.00050684,120]
[354754795,1740666659694,-500.0,0.00050684,120]
[354754796,1740666659703,-184.6,0.00050684,30]
[354754797,1740666659714,-1030.86,0.00050684,120]
[354754798,1740666659725,-500.0,0.00050684,120]
[354754799,1740666659735,-500.0,0.00050684,120]
[354754800,1740666659744,-500.0,0.00050684,120]
[354754801,1740666659754,-278.44,0.00050684,120]
[354754802,1740666659764,-726.73,0.00050684,120]
[354754803,1740666659775,-620.2,0.00050684,120]
[354754804,1740666659784,-25688.59,0.00050684,7]
[354754805,1740666659794,-1792.0,0.00050684,120]
[354754806,1740666659804,-500.0,0.00050684,120]
[354754807,1740666659814,-500.0,0.00050684,120]
[354754808,1740666659823,-1063.21,0.00050684,120]
[354754809,1740666659832,-500.0,0.00050684,120]
[354754810,1740666659842,-500.0,0.00050684,120]
[354754811,1740666659851,-500.0,0.00050684,120]
[354754812,1740666659860,-500.0,0.00050684,120]
[354754813,1740666659870,-716.89,0.00050684,120]
[354754814,1740666659879,-1126.63,0.00050684,120]
[354754815,1740666659889,-924.76,0.00050684,120]
[354754816,1740666659899,-500.0,0.00050684,120]
[354754817,1740666659908,-500.0,0.00050684,120]
[354754818,1740666659918,-500.0,0.00050684,120]
[354754819,1740666659928,-500.0,0.00050684,120]
[354754820,1740666659938,-500.0,0.00050684,120]
[354754821,1740666659947,-500.0,0.00050684,120]
[354754822,1740666659956,-622.67,0.00050684,120]
[354754823,1740666659966,-500.0,0.00050684,120]
[354754824,1740666659978,-667.96,0.00050684,120]
[354754825,1740666659987,-500.0,0.00050684,120]
[354754826,1740666659996,-500.0,0.00050684,120]
[354754827,1740666660006,-4828.8,0.00050684,120]
[354754828,1740666660016,-500.0,0.00050684,120]
[354754829,1740666660027,-597.53,0.00050684,120]
[354754830,1740666660037,-1036.14,0.00050684,120]
[354754831,1740666660047,-500.0,0.00050684,120]
[354754832,1740666660057,-570.92,0.00050684,120]
[354754833,1740666660067,-500.0,0.00050684,120]
[354754834,1740666660076,-1516.36,0.00050684,120]
[354754835,1740666660086,-500.0,0.00050684,120]
[354754836,1740666660097,-500.0,0.00050684,120]
[354754837,1740666660108,-4517.43,0.00050684,6]
[354754838,1740666660118,-500.0,0.00050684,120]
[354754839,1740666660127,-659.38,0.00050684,120]
[354754840,1740666660136,-500.0,0.00050684,120]
[354754841,1740666660149,-500.0,0.00050684,120]
[354754842,1740666660161,-500.0,0.00050684,120]
[354754843,1740666660174,-500.0,0.00050684,120]
[354754844,1740666660190,-500.0,0.00050684,120]
[354754845,1740666660203,-500.0,0.00050684,120]
[354754846,1740666660213,-500.0,0.00050684,120]
[354754847,1740666660226,-2730.13,0.00050684,120]
[354754848,1740666660237,-500.0,0.00050684,2]
[354754849,1740666660247,-461.14206485,0.00050684,120]
[354754850,1740666660257,-750.01,0.00050684,120]
[354754851,1740666660268,-2122.3,0.00050684,120]
[354754852,1740666660279,-3188.09,0.00050684,120]
[354754853,1740666660290,-500.0,0.00050684,120]
[354754854,1740666660300,-1337.0,0.00050684,120]
[354754855,1740666660311,-500.0,0.00050684,120]
[354754856,1740666660320,-500.0,0.00050958,120]
[354754857,1740666660330,-500.0,0.00050958,120]
[354754858,1740666660340,-533.14,0.00050958,120]
[354754859,1740666660351,-500.0,0.00050958,120]
[354754860,1740666660361,-500.0,0.00050958,120]
[354754861,1740666660371,-710.53,0.00050958,120]
[354754862,1740666660380,-500.0,0.00050958,120]
[354754863,1740666660390,-500.0,0.00050958,120]
[354754864,1740666660400,-500.0,0.00050958,120]
[354754865,1740666660410,-500.0,0.00050958,120]
[354754866,1740666660419,-500.0,0.00050958,120]
[354754867,1740666660429,-500.0,0.00050958,120]
[354754868,1740666660439,-500.0,0.00050958,120]
[354754869,1740666660449,-500.0,0.00050958,120]
[354754870,1740666660459,-500.0,0.00050958,120]
[354754871,1740666660468,-500.0,0.00050958,120]
[354754872,1740666660484,-500.0,0.00050958,120]
[354754873,1740666660493,-500.0,0.00050958,120]
[354754874,1740666660503,-500.0,0.00050958,120]
[354754875,1740666660514,-500.0,0.00050958,120]
[354754876,1740666660524,-500.0,0.00050958,120]
[354754877,1740666660534,-500.0,0.00050958,120]
[354754878,1740666660544,-500.0,0.00050958,120]
[354754879,1740666660558,-500.0,0.00050958,120]
[354754880,1740666660568,-644.05,0.00050958,120]
[354754881,1740666660578,-500.0,0.00050958,120]
[354754882,1740666660587,-500.0,0.00050958,120]
[354754883,1740666660597,-463.22,0.00050958,120]
[354754884,1740666660606,-500.0,0.00050958,120]
[354754885,1740666660616,-500.0,0.00050958,120]
[354754886,1740666660625,-500.0,0.00050958,120]
[354754887,1740666660635,-151.78,0.00050958,120]
[354754888,1740666660647,-500.0,0.00050958,120]
[354754889,1740666660657,-500.0,0.00050958,120]
[354754890,1740666660666,-1164.08,0.00050958,120]
[354754891,1740666660677,-500.0,0.00050958,120]
[354754892,1740666660686,-693.23,0.00050958,120]
[354754893,1740666660696,-500.0,0.00050958,120]
[354754894,1740666660705,-1030.86,0.00050958,120]
[354754895,1740666660717,-500.0,0.00050958,120]
[354754896,1740666660730,-500.0,0.00050958,120]
[354754897,1740666660740,-726.73,0.00050958,120]
[354754898,1740666660749,-25688.59,0.00050958,7]
[354754899,1740666660759,-1792.0,0.00050958,120]
[354754900,1740666660768,-500.0,0.00050958,120]
[354754901,1740666660778,-500.0,0.00050958,120]
[354754902,1740666660788,-1063.21,0.00050958,120]
[354754903,1740666660797,-500.0,0.00050958,120]
[354754904,1740666660807,-179.73,0.00050958,120]
[354754905,1740666660817,-500.0,0.00050958,120]
[354754906,1740666660826,-716.89,0.00050958,120]
[354754907,1740666660835,-1126.63,0.00050958,120]
[354754908,1740666660844,-924.76,0.00050958,120]
[354754909,1740666660854,-500.0,0.00050958,120]
[354754910,1740666660863,-500.0,0.00050958,120]
[354754911,1740666660873,-500.0,0.00050958,120]
[354754912,1740666660883,-500.0,0.00050958,120]
[354754913,1740666660892,-500.0,0.00050958,120]
[354754914,1740666660902,-500.0,0.00050958,120]
[354754915,1740666660911,-622.67,0.00050958,120]
[354754916,1740666660920,-500.0,0.00050958,120]
[354754917,1740666660929,-667.96,0.00050958,120]
[354754918,1740666660939,-500.0,0.00050958,120]
[354754919,1740666660948,-500.0,0.00050958,120]
[354754920,1740666660958,-4828.8,0.00050958,120]
[354754921,1740666660968,-500.0,0.00050958,120]
[354754922,1740666660980,-1036.14,0.00050958,120]
[354754923,1740666660989,-500.0,0.00050958,120]
[354754924,1740666660999,-570.92,0.00050958,120]
[354754925,1740666661008,-500.0,0.00050958,120]
[354754926,1740666661018,-1217.63303043,0.00050958,120]
[354754927,1740666661109,-298.72696957,0.00050958,120]
[354754928,1740666661119,-500.0,0.00050958,120]
[354754929,1740666661129,-500.0,0.00050958,120]
[354754930,1740666661138,-448.14303043,0.00050958,6]
[354754931,1740666662030,218.55514567,0.0003,30]
[354754936,1740667056451,1300.0,0.0003,2]
[354754937,1740667599104,-491.85009645,0.00031998,2]
[354754938,1740667648614,-1029.21188766,0.00031998,2]
[354754939,1740667648636,-183.066836,0.00032877,2]
[354754940,1740667648659,-471.210242,0.00037221,2]
[354754941,1740667648682,-169.8700741,0.00037864,2]
[354754942,1740667648706,-403.89130259,0.000379,8]
[354754943,1740667648730,-400.0,0.00037926,2]
[354754944,1740667648753,-10000.0,0.00037927,2]
[354754945,1740667648779,-403.89130231,0.0003959,8]
[354754946,1740667648800,-3596.3569712,0.00039692,2]
[354754947,1740667653943,500.0,0.00033,30]
[354754948,1740667654304,500.0,0.00033,30]
[354754949,1740667654648,500.0,0.00033,30]
[354754950,1740667654999,500.0,0.00033,30]
[354754951,1740667655339,500.0,0.00033,30]
[354754952,1740667655670,500.0,0.00033,30]
[354754953,1740667656049,500.0,0.00033,30]
[354754954,1740667656688,500.0,0.00033,2]
[354754955,1740667656779,500.0,0.00033,2]
[354754956,1740667657240,500.0,0.00033,2]
[354754957,1740667657627,500.0,0.00033,2]
[354754958,1740667657972,500.0,0.00033,2]
[354754959,1740667658329,873.32116532,0.00033,2]
[354754960,1740667671931,30963.6702869,0.00039105,2]
[354754961,1740667691942,2737.4710134,0.00038716,2]
[354754969,1740667832767,-4482.32861275,0.00040146,2]
[354754970,1740667832778,-4439.80774367,0.00040785,120]
[354754971,1740667832790,-9478.59105195,0.00040785,120]
[354754972,1740667832800,-550.0,0.00040884,5]
[354754973,1740667832810,-202.9696331,0.00040885,2]
[354754974,1740667832820,-261.2219968,0.00040919,2]
[354754975,1740667832830,-403.89130231,0.00041279,9]
[354754976,1740667832840,-465.15135044,0.00041579,15]
[354754977,1740667832850,-166.0,0.00042362,120]
[354754978,1740667832859,-403.89130231,0.00042969,9]
[354754979,1740667832869,-770.0,0.00043569,5]
[354754981,1740667832879,-152.07,0.00043688,2]
[354754982,1740667832889,-152.07,0.00043688,2]
[354754983,1740667832898,-152.07,0.00043688,2]
[354754984,1740667832911,-152.07,0.00043688,2]
[354754985,1740667832921,-152.07,0.00043688,2]
[354754986,1740667832931,-152.07,0.00043688,2]
[354754987,1740667832940,-152.07,0.00043688,2]
[354754988,1740667832949,-152.07,0.00043688,2]
[354754989,1740667832960,-152.07,0.00043688,2]